fUST/lending_fUST_20241202
["ID","MTS","AMOUNT","RATE_DAILY","PERIOD"]
[343934056,1733098244443,-267.180967,0.00027397,7]
[343934057,1733098244452,-267.180967,0.00027397,7]
[343934058,1733098244462,-267.180967,0.00027397,7]
[343934059,1733098244472,-500.0,0.00027397,3]
[343934060,1733098244482,-267.180958,0.00027397,7]
[343934061,1733098244496,-500.0,0.00027397,3]
[343934062,1733098244506,-515.11767269,0.00027397,3]
[343934063,1733098244516,-500.0,0.00027397,3]
[343934064,1733098244526,-500.0,0.00027397,3]
[343934065,1733098244536,-630.82041022,0.00027397,3]
[343934066,1733098244546,-505.44614755,0.00027397,3]
[343934067,1733098244557,-500.0,0.00027397,3]
[343934068,1733098244567,-500.0,0.00027397,3]
[343934069,1733098244578,-1000.0,0.00027397,5]
[343934070,1733098244658,-500.0,0.00027397,3]
[343934071,1733098244667,-508.33636162,0.00027397,3]
[343934072,1733098244674,-500.0,0.00027397,3]
[343934073,1733098244682,-500.0,0.00027397,3]
[343934074,1733098244690,-513.39235106,0.00027397,3]
[343934075,1733098244697,-500.0,0.00027397,3]
[343934076,1733098244704,-500.0,0.00027397,3]
[343934077,1733098244714,-548.29,0.00027397,3]
[343934078,1733098244723,-500.0,0.00027397,3]
[343934079,1733098244732,-610.87,0.00027397,3]
[343934080,1733098244744,-500.0,0.00027397,3]
[343934081,1733098244756,-263.255215,0.00027397,7]
[343934082,1733098244765,-151.0,0.00027397,7]
[343934083,1733098244775,-554.43371592,0.00027397,3]
[343934084,1733098244784,-249.25385,0.00027397,7]
[343934085,1733098244794,-514.54331638,0.00027397,3]
[343934086,1733098244803,-500.0,0.00027397,3]
[343934087,1733098244820,-500.0,0.00027397,3]
[343934088,1733098244831,-500.0,0.00027397,3]
[343934089,1733098244839,-500.0,0.00027397,3]
[343934090,1733098244850,-500.0,0.00027397,3]
[343934091,1733098244859,-210.50286783,0.00027397,3]
[343934092,1733098244869,-500.0,0.00027397,3]
[343934093,1733098244878,-500.0,0.00027397,3]
[343934094,1733098244887,-500.0,0.00027397,3]
[343934095,1733098244896,-500.0,0.00027397,3]
[343934096,1733098244905,-500.0,0.00027397,3]
[343934097,1733098244915,-500.0,0.00027397,3]
[343934098,1733098244924,-537.90780736,0.00027397,3]
[343934099,1733098244934,-500.0,0.00027397,3]
[343934100,1733098244944,-500.0,0.00027397,3]
[343934101,1733098244953,-500.0,0.00027397,3]
[343934102,1733098244962,-500.0,0.00027397,3]
[343934103,1733098244973,-500.0,0.00027397,3]
[343934104,1733098244983,-506.01784931,0.00027397,3]
[343934105,1733098244998,-500.0,0.00027397,3]
[343934106,1733098245008,-500.0,0.00027397,3]
[343934107,1733098245018,-500.0,0.00027397,3]
[343934108,1733098245028,-505.83339669,0.00027397,3]
[343934109,1733098245038,-500.0,0.00027397,3]
[343934110,1733098245047,-160.40318314,0.00027397,3]
[343934111,1733098245058,-500.0,0.00027397,3]
[343934112,1733098245068,-500.0,0.00027397,3]
[343934113,1733098245078,-515.48641317,0.00027397,3]
[343934114,1733098245087,-500.0,0.00027397,3]
[343934115,1733098245097,-500.0,0.00027397,3]
[343934116,1733098245106,-151.0,0.00027397,7]
[343934117,1733098245116,-500.0,0.00027397,3]
[343934118,1733098245125,-151.0,0.00027397,7]
[343934119,1733098245136,-500.0,0.00027397,3]
[343934120,1733098245147,-151.0,0.00027397,7]
[343934121,1733098245165,-151.0,0.00027397,7]
[343934122,1733098245175,-151.0,0.00027397,7]
[343934123,1733098245184,-151.0,0.00027397,7]
[343934124,1733098245194,-200.0,0.00027397,3]
[343934125,1733098245203,-258.19587,0.00027397,7]
[343934126,1733098245212,-502.77362476,0.00027397,3]
[343934127,1733098245221,-500.0,0.00027397,3]
[343934128,1733098245231,-489.69402588,0.00027397,3]
[343934129,1733098245246,-500.0,0.00027397,3]
[343934130,1733098245257,-505.11218332,0.00027397,3]
[343934131,1733098245267,-500.0,0.00027397,3]
[343934132,1733098245278,-369.558532,0.00027397,7]
[343934133,1733098245289,-369.558532,0.00027397,7]
[343934134,1733098245298,-369.558532,0.00027397,7]
[343934135,1733098245307,-369.558532,0.00027397,7]
[343934136,1733098245316,-511.19121021,0.00027397,3]
[343934137,1733098245326,-644.30861612,0.00027397,3]
[343934138,1733098245335,-369.558532,0.00027397,7]
[343934139,1733098245344,-369.558532,0.00027397,7]
[343934140,1733098245354,-369.558532,0.00027397,7]
[343934141,1733098245363,-369.558532,0.00027397,7]
[343934142,1733098245373,-274.50482239,0.00027397,7]
[343934148,1733098246344,-329.8082874,0.00024953,2]
[343934149,1733098246354,-95.05370961,0.00027397,7]
[343934150,1733098246364,-500.0,0.00027397,3]
[343934151,1733098246374,-240.13800299,0.00027397,3]
[343934163,1733098406848,162.568126,0.00013973,2]
[343934169,1733099169103,163.009731,0.00013973,2]
[343934173,1733099207107,-390.24833483,0.000198,2]
[343934174,1733099207131,-1449.8315274,0.0002,2]
[343934175,1733099207151,-167.89197962,0.000245,2]
[343934176,1733099207172,-300.0,0.00025568,2]
[343934177,1733099207194,-300.0,0.00025568,2]
[343934178,1733099207214,-1179.57030167,0.00025569,2]
[343934184,1733099302860,2520.96238115,0.000125,2]
[343934185,1733099302891,6749.27482561,0.000125,2]
[343934186,1733099323704,998.32700089,0.0001,2]
[343934187,1733099326977,1000.0,0.0001,2]
[343934188,1733099327911,10876.22911943,0.000109,2]
[343934253,1733099434810,-154.49976946,0.000176,2]
[343934254,1733099434820,-300.0,0.00024999,2]
[343934255,1733099434831,-300.0,0.00024999,2]
[343934256,1733099434838,-2523.2013708,0.00025,2]
[343934258,1733099434847,-7678.91799225,0.00025,2]
[343934259,1733099434857,-5718.31365344,0.00025,2]
[343934260,1733099434869,-1447.60771,0.00025,2]
[343934313,1733099438492,-1132.85247942,0.00025,2]
[343934397,1733099440463,-2799.999995,0.00025,2]
[343934435,1733099443738,-566.71363692,0.00025,2]
[343934436,1733099443749,-472.65132198,0.00025,2]
[343934437,1733099443766,-3146.80336755,0.00025,2]
[343934438,1733099443779,-747.05303175,0.00025,2]
[343934439,1733099443789,-9291.4656142,0.0002509,2]
[343934440,1733099443801,-2682.97755859,0.0002509,2]
[343934441,1733099443810,-1784.21311879,0.00025569,2]
[343934457,1733099446460,-913.5551954,0.0002475,2]
[343934458,1733099446472,-2429.79008825,0.0002475,2]
[343934534,1733099981686,166.059607,0.00013973,2]
[343934536,1733100069739,999.99,0.000219,30]
[343934583,1733100556145,-3278.76175239,0.000198,2]
[343934599,1733100632562,-5000.0,0.00019602,2]
[343934601,1733100632577,-1721.23824761,0.000198,2]
[343934603,1733100632589,-180.20243734,0.0002,2]
[343934604,1733100632598,-1581.670179,0.00021966,2]
[343934605,1733100632607,-881.1918162,0.00022037,2]
[343934606,1733100632618,-2356.83713188,0.00022162,2]
[343934611,1733100632666,-360.3606264,0.00022162,2]
[343934758,1733100638734,-369.99999999,0.0002194,2]
[343934765,1733100638861,-4630.00000001,0.0002194,2]
[343934767,1733100638871,-418.33489152,0.00022162,2]
[343934769,1733100638882,-1376.1236267,0.00022339,2]
[343934771,1733100638894,-222.985734,0.0002242,2]
[343934773,1733100638903,-300.0,0.00022533,2]
[343934775,1733100638913,-134.09634374,0.00022534,2]
[343935073,1733100643660,-165.90365626,0.00022534,2]
[343935074,1733100643670,-613.0,0.00022534,2]
[343935075,1733100643680,-12289.6722764,0.00022535,2]
[343935076,1733100643689,-672.7601482,0.0002272,2]
[343935077,1733100643699,-200.0,0.00023562,2]
[343935078,1733100643709,-2184.69825826,0.00023899,2]
[343935079,1733100643718,-334.18031096,0.000239,2]
[343935080,1733100643728,-2239.36034565,0.000239,2]
[343935081,1733100643738,-842.48,0.0002399,3]
[343935082,1733100643748,-421.24,0.0002399,3]
[343935083,1733100643757,-210.62,0.0002399,3]
[343935084,1733100643767,-631.86,0.0002399,3]
[343935085,1733100643776,-500.0,0.00023998,2]
[343935086,1733100643785,-500.0,0.00023998,2]
[343935087,1733100643795,-500.0,0.00023998,2]
[343935088,1733100643804,-500.0,0.00023998,2]
[343935089,1733100643814,-500.0,0.00023998,2]
[343935090,1733100643823,-500.0,0.00023998,2]
[343935091,1733100643835,-230.34413071,0.00023998,2]
[343935092,1733100643844,-500.0,0.00023998,2]
[343935093,1733100643854,-500.0,0.00023998,2]
[343935094,1733100643863,-500.0,0.00023998,2]
[343935095,1733100643872,-500.0,0.00023998,2]
[343935096,1733100643882,-500.0,0.00023998,2]
[343935097,1733100643895,-500.0,0.00023998,2]
[343935098,1733100643904,-310.28876242,0.00023998,2]
[343935099,1733100643914,-500.0,0.00023998,2]
[343935100,1733100643923,-500.0,0.00023998,2]
[343935101,1733100643934,-500.0,0.00023998,2]
[343935102,1733100643943,-500.0,0.00023998,2]
[343935103,1733100643952,-500.0,0.00023998,2]
[343935104,1733100643962,-500.0,0.00023998,2]
[343935105,1733100643973,-500.0,0.00023998,2]
[343935106,1733100643982,-500.0,0.00023998,2]
[343935107,1733100643992,-410.67276522,0.00023998,2]
[343935108,1733100644001,-500.0,0.00023998,2]
[343935109,1733100644011,-500.0,0.00023998,2]
[343935110,1733100644020,-500.0,0.00023998,2]
[343935111,1733100644030,-500.0,0.00023998,2]
[343935112,1733100644040,-500.0,0.00023998,2]
[343935113,1733100644049,-500.0,0.00023998,2]
[343935114,1733100644059,-500.0,0.00023998,2]
[343935115,1733100644068,-500.0,0.00023998,2]
[343935116,1733100644078,-500.0,0.00023998,2]
[343935117,1733100644088,-500.0,0.00023998,2]
[343935118,1733100644097,-500.0,0.00023998,2]
[343935119,1733100644106,-500.0,0.00023998,2]
[343935120,1733100644117,-500.0,0.00023998,2]
[343935121,1733100644127,-500.0,0.00023998,2]
[343935122,1733100644137,-500.0,0.00023998,2]
[343935123,1733100644146,-500.0,0.00023998,2]
[343935124,1733100644156,-500.0,0.00023998,2]
[343935125,1733100644166,-500.0,0.00023998,2]
[343935126,1733100644175,-500.0,0.00023998,2]
[343935127,1733100644185,-500.0,0.00023998,2]
[343935128,1733100644195,-500.0,0.00023998,2]
[343935129,1733100644205,-500.0,0.00023998,2]
[343935130,1733100644214,-500.0,0.00023998,2]
[343935131,1733100644224,-500.0,0.00023998,2]
[343935132,1733100644233,-500.0,0.00023998,2]
[343935133,1733100644243,-500.0,0.00023998,2]
[343935134,1733100644252,-500.0,0.00023998,2]
[343935135,1733100644261,-500.0,0.00023998,2]
[343935136,1733100644270,-500.0,0.00023998,2]
[343935137,1733100644280,-500.0,0.00023998,2]
[343935138,1733100644289,-500.0,0.00023998,2]
[343935139,1733100644298,-500.0,0.00023998,2]
[343935140,1733100644308,-500.0,0.00023998,2]
[343935141,1733100644317,-500.0,0.00023998,2]
[343935142,1733100644329,-500.0,0.00023998,2]
[343935143,1733100644339,-500.0,0.00023998,2]
[343935144,1733100644353,-500.0,0.00023998,2]
[343935145,1733100644362,-345.02920377,0.00023998,2]
[343935146,1733100644372,-500.0,0.00023998,2]
[343935147,1733100644382,-500.0,0.00023998,2]
[343935148,1733100644391,-500.0,0.00023998,2]
[343935149,1733100644401,-500.0,0.00023998,2]
[343935150,1733100644410,-500.0,0.00023998,2]
[343935151,1733100644420,-12480.87370876,0.00023999,2]
[343935152,1733100644429,-987.06608925,0.00023999,2]
[343935153,1733100644439,-326.54427501,0.00023999,2]
[343935154,1733100644448,-2468415.61,0.00024,5]
[343935155,1733100644458,-500.0,0.00024,2]
[343935156,1733100644467,-260.26278781,0.00024,2]
[343935157,1733100644476,-200.31513909,0.00024,2]
[343935158,1733100644487,-162.0,0.00024,2]
[343935159,1733100644497,-345.10144811,0.00024,2]
[343935160,1733100644506,-500.12741006,0.00024,2]
[343935161,1733100644515,-159.21960862,0.00024,2]
[343935162,1733100644525,-291.56183589,0.00024,2]
[343935163,1733100644534,-513.5359612,0.00024,2]
[343935164,1733100644545,-501.6241701,0.00024,2]
[343935165,1733100644554,-374.69376712,0.00024,2]
[343935166,1733100644564,-500.0,0.00024,2]
[343935167,1733100644574,-176.9811329,0.00024272,2]
[343935168,1733100644586,-420.0,0.00024474,2]
[343935169,1733100644596,-1000.0,0.00024548,2]
[343935170,1733100644605,-1000.0,0.00024548,2]
[343935171,1733100644615,-2239.36034562,0.0002463,2]
[343935172,1733100644624,-420.0,0.00024786,2]
[343935173,1733100644634,-2184.69825819,0.00024837,2]
[343935174,1733100644643,-8296.8199315,0.00024962,2]
[343935175,1733100644652,-150.0,0.00025217,2]
[343935176,1733100644662,-8296.81993151,0.00025354,2]
[343935177,1733100644671,-162.0,0.00025358,2]
[343935178,1733100644680,-2239.36034562,0.00025359,2]
[343935179,1733100644690,-1684.96,0.0002536,3]
[343935180,1733100644699,-842.48,0.0002536,3]
[343935181,1733100644709,-421.24,0.0002536,3]
[343935182,1733100644718,-300.0,0.000255,2]
[343935183,1733100644728,-1500.0,0.0002555,2]
[343935184,1733100644737,-1093.3550722,0.0002555,2]
[343935185,1733100644747,-2184.69825819,0.00025776,2]
[343935186,1733100644757,-2239.36034562,0.00026089,2]
[343935187,1733100644767,-160.0,0.00026208,3]
[343935188,1733100644776,-300.0,0.000265,2]
[343935189,1733100644786,-587.0,0.0002658,2]
[343935190,1733100644795,-2184.69825819,0.00026714,2]
[343935191,1733100644805,-160.0,0.00026756,4]
[343935192,1733100644814,-2239.36034562,0.00026819,2]
[343935193,1733100644823,-320.14634319,0.00026847,2]
[343935194,1733100644835,-1093.57417345,0.00027,2]
[343935195,1733100644844,-587.0,0.00027265,2]
[343935197,1733100644853,-151.49418,0.00027266,7]
[343935199,1733100644863,-666.0,0.00027297,2]
[343935201,1733100644872,-6666.0,0.00027297,2]
[343935202,1733100644882,-151.0,0.00027297,7]
[343935203,1733100644893,-208.16,0.000273,7]
[343935205,1733100644902,-151.0,0.000273,7]
[343935207,1733100644911,-300.0,0.000273,13]
[343935208,1733100644920,-18305.15373896,0.000273,2]
[343935210,1733100644930,-3007.29606309,0.000273,2]
[343935212,1733100644940,-3007.29606309,0.000273,2]
[343935213,1733100644949,-3007.29606309,0.000273,2]
[343935214,1733100644958,-3007.29606309,0.000273,2]
[343935215,1733100644969,-160.0,0.00027304,5]
[343935216,1733100644980,-2030.27277683,0.00027317,2]
[343935217,1733100644991,-500.0,0.00027373,2]
[343935218,1733100645001,-500.0,0.00027373,2]
[343935220,1733100645011,-516.07790882,0.00027373,2]
[343935222,1733100645021,-500.0,0.00027373,2]
[343935224,1733100645031,-500.61610407,0.00027373,2]
[343935225,1733100645040,-500.0,0.00027373,2]
[343935230,1733100645124,-500.0,0.00027373,2]
[343935231,1733100645135,-151.12032629,0.00027373,2]
[343935232,1733100645144,-158.5,0.00027373,2]
[343935233,1733100645154,-500.0,0.00027373,2]
[343935234,1733100645163,-500.31221398,0.00027373,2]
[343935235,1733100645172,-500.0,0.00027373,2]
[343935236,1733100645182,-160.25293066,0.00027373,2]
[343935237,1733100645191,-500.0,0.00027373,2]
[343935238,1733100645201,-500.0,0.00027373,2]
[343935239,1733100645211,-500.0,0.00027373,2]
[343935240,1733100645221,-263.40478603,0.00027373,2]
[343935241,1733100645232,-1800.99669904,0.00027396,2]
[343935242,1733100645241,-500.0,0.00027397,3]
[343935243,1733100645250,-500.0,0.00027397,3]
[343935244,1733100645259,-500.0,0.00027397,3]
[343935245,1733100645269,-500.0,0.00027397,3]
[343935246,1733100645278,-500.0,0.00027397,3]
[343935247,1733100645288,-500.0,0.00027397,3]
[343935248,1733100645297,-500.0,0.00027397,3]
[343935249,1733100645307,-500.0,0.00027397,3]
[343935250,1733100645316,-500.0,0.00027397,3]
[343935251,1733100645326,-600.19853082,0.00027397,3]
[343935252,1733100645342,-229.20800725,0.00027397,3]
[343935253,1733100645352,-500.0,0.00027397,3]
[343935254,1733100645361,-500.0,0.00027397,3]
[343935255,1733100645370,-500.0,0.00027397,3]
[343935256,1733100645379,-500.0,0.00027397,3]
[343935257,1733100645390,-500.0,0.00027397,3]
[343935258,1733100645399,-329.3363051,0.00027397,3]
[343935259,1733100645409,-500.0,0.00027397,3]
[343935260,1733100645418,-500.0,0.00027397,3]
[343935261,1733100645427,-200.0,0.00027397,3]
[343935262,1733100645436,-500.0,0.00027397,3]
[343935263,1733100645446,-500.0,0.00027397,3]
[343935264,1733100645455,-500.0,0.00027397,3]
[343935265,1733100645464,-500.0,0.00027397,3]
[343935266,1733100645473,-500.0,0.00027397,3]
[343935267,1733100645482,-500.0,0.00027397,3]
[343935268,1733100645491,-623.41268733,0.00027397,3]
[343935269,1733100645500,-500.0,0.00027397,3]
[343935270,1733100645510,-500.0,0.00027397,3]
[343935271,1733100645520,-500.0,0.00027397,3]
[343935272,1733100645530,-503.34614671,0.00027397,3]
[343935273,1733100645539,-500.0,0.00027397,3]
[343935274,1733100645548,-500.0,0.00027397,3]
[343935275,1733100645557,-500.0,0.00027397,3]
[343935276,1733100645567,-500.0,0.00027397,3]
[343935277,1733100645575,-500.0,0.00027397,3]
[343935278,1733100645587,-500.0,0.00027397,3]
[343935279,1733100645596,-500.0,0.00027397,3]
[343935280,1733100645605,-500.0,0.00027397,3]
[343935281,1733100645614,-311.66334416,0.00027397,3]
[343935282,1733100645623,-500.0,0.00027397,3]
[343935283,1733100645632,-500.0,0.00027397,3]
[343935284,1733100645641,-500.0,0.00027397,3]
[343935285,1733100645650,-486.37704505,0.00027397,3]
[343935286,1733100645659,-500.0,0.00027397,3]
[343935287,1733100645667,-500.0,0.00027397,3]
[343935288,1733100645677,-500.0,0.00027397,3]
[343935289,1733100645685,-500.0,0.00027397,3]
[343935290,1733100645692,-500.0,0.00027397,3]
[343935291,1733100645702,-500.0,0.00027397,3]
[343935292,1733100645711,-500.0,0.00027397,3]
[343935293,1733100645719,-500.0,0.00027397,3]
[343935294,1733100645728,-504.7612534,0.00027397,3]
[343935295,1733100645737,-500.0,0.00027397,3]
[343935296,1733100645745,-500.0,0.00027397,3]
[343935297,1733100645754,-500.0,0.00027397,3]
[343935298,1733100645763,-500.0,0.00027397,3]
[343935299,1733100645772,-500.0,0.00027397,3]
[343935300,1733100645781,-500.0,0.00027397,2]
[343935301,1733100645790,-500.0,0.00027397,3]
[343935302,1733100645798,-500.0,0.00027397,3]
[343935303,1733100645808,-500.0,0.00027397,3]
[343935304,1733100645817,-501.96945509,0.00027397,3]
[343935305,1733100645829,-500.0,0.00027397,3]
[343935306,1733100645838,-551.25947272,0.00027397,3]
[343935307,1733100645848,-500.0,0.00027397,3]
[343935308,1733100645858,-500.0,0.00027397,3]
[343935309,1733100645868,-500.0,0.00027397,3]
[343935310,1733100645878,-500.0,0.00027397,3]
[343935311,1733100645889,-500.0,0.00027397,3]
[343935312,1733100645901,-558.62937426,0.00027397,3]
[343935313,1733100645910,-500.0,0.00027397,3]
[343935314,1733100645920,-500.0,0.00027397,3]
[343935315,1733100645929,-472.52019131,0.00027397,3]
[343935316,1733100645939,-500.0,0.00027397,3]
[343935317,1733100645947,-500.0,0.00027397,3]
[343935318,1733100645957,-251.76704797,0.00027397,3]
[343935319,1733100645967,-500.0,0.00027397,3]
[343935320,1733100645977,-500.0,0.00027397,3]
[343935321,1733100645986,-500.0,0.00027397,3]
[343935322,1733100645996,-500.0,0.00027397,3]
[343935323,1733100646005,-500.0,0.00027397,3]
[343935324,1733100646015,-500.0,0.00027397,3]
[343935325,1733100646024,-500.0,0.00027397,3]
[343935326,1733100646034,-500.0,0.00027397,3]
[343935327,1733100646044,-523.87286034,0.00027397,3]
[343935328,1733100646053,-186.31006739,0.00027397,3]
[343935329,1733100646063,-500.0,0.00027397,3]
[343935330,1733100646072,-702.47,0.00027397,3]
[343935331,1733100646086,-940.12,0.00027397,3]
[343935333,1733100646095,-500.0,0.00027397,3]
[343935335,1733100646104,-500.0,0.00027397,3]
[343935337,1733100646114,-500.0,0.00027397,3]
[343935339,1733100646123,-500.0,0.00027397,3]
[343935340,1733100646132,-500.0,0.00027397,3]
[343935341,1733100646142,-500.0,0.00027397,3]
[343935342,1733100646152,-500.0,0.00027397,3]
[343935343,1733100646161,-500.0,0.00027397,3]
[343935344,1733100646172,-500.0,0.00027397,3]
[343935345,1733100646181,-500.0,0.00027397,3]
[343935346,1733100646192,-500.0,0.00027397,3]
[343935347,1733100646202,-500.0,0.00027397,3]
[343935348,1733100646211,-609.41456462,0.00027397,3]
[343935349,1733100646220,-500.0,0.00027397,3]
[343935350,1733100646230,-500.0,0.00027397,3]
[343935351,1733100646240,-545.71808726,0.00027397,3]
[343935352,1733100646250,-500.0,0.00027397,3]
[343935353,1733100646259,-506.96685846,0.00027397,3]
[343935354,1733100646269,-500.0,0.00027397,3]
[343935355,1733100646278,-413.93360967,0.00027397,3]
[343935356,1733100646287,-500.0,0.00027397,3]
[343935357,1733100646296,-500.0,0.00027397,3]
[343935358,1733100646305,-500.0,0.00027397,3]
[343935359,1733100646315,-500.0,0.00027397,3]
[343935360,1733100646324,-500.0,0.00027397,3]
[343935361,1733100646338,-500.0,0.00027397,3]
[343935362,1733100646347,-500.0,0.00027397,3]
[343935363,1733100646357,-500.0,0.00027397,3]
[343935364,1733100646367,-500.0,0.00027397,3]
[343935365,1733100646376,-500.0,0.00027397,3]
[343935366,1733100646385,-481.43483017,0.00027397,3]
[343935367,1733100646395,-500.0,0.00027397,3]
[343935368,1733100646404,-619.67,0.00027397,3]
[343935369,1733100646414,-500.0,0.00027397,2]
[343935370,1733100646423,-506.95810338,0.00027397,3]
[343935371,1733100646433,-500.0,0.00027397,3]
[343935372,1733100646442,-500.0,0.00027397,3]
[343935373,1733100646453,-500.0,0.00027397,3]
[343935374,1733100646462,-500.0,0.00027397,3]
[343935375,1733100646472,-500.0,0.00027397,3]
[343935376,1733100646482,-500.0,0.00027397,3]
[343935377,1733100646491,-203.257193,0.00027397,7]
[343935378,1733100646501,-203.257193,0.00027397,7]
[343935379,1733100646511,-505.61117826,0.00027397,3]
[343935380,1733100646520,-203.257193,0.00027397,7]
[343935381,1733100646530,-1019.92,0.00027397,3]
[343935382,1733100646540,-203.257193,0.00027397,7]
[343935383,1733100646549,-203.257193,0.00027397,7]
[343935384,1733100646559,-203.257193,0.00027397,7]
[343935385,1733100646568,-203.257193,0.00027397,7]
[343935386,1733100646578,-203.257193,0.00027397,7]
[343935387,1733100646656,-203.257193,0.00027397,7]
[343935388,1733100646666,-503.2507034,0.00027397,3]
[343935389,1733100646676,-535.68431053,0.00027397,3]
[343935390,1733100646685,-500.0,0.00027397,3]
[343935391,1733100646694,-203.257193,0.00027397,7]
[343935392,1733100646704,-203.257193,0.00027397,7]
[343935393,1733100646714,-203.257193,0.00027397,7]
[343935394,1733100646723,-203.257193,0.00027397,7]
[343935395,1733100646732,-203.257193,0.00027397,7]
[343935396,1733100646742,-203.257193,0.00027397,7]
[343935397,1733100646752,-203.257193,0.00027397,7]
[343935398,1733100646761,-203.257193,0.00027397,7]
[343935399,1733100646770,-599.7430365,0.00027397,3]
[343935400,1733100646780,-203.257193,0.00027397,7]
[343935401,1733100646790,-500.0,0.00027397,3]
[343935402,1733100646799,-500.0,0.00027397,3]
[343935403,1733100646808,-203.257193,0.00027397,7]
[343935404,1733100646817,-500.0,0.00027397,3]
[343935405,1733100646827,-203.257185,0.00027397,7]
[343935406,1733100646839,-501.96399337,0.00027397,3]
[343935407,1733100646849,-500.0,0.00027397,3]
[343935408,1733100646859,-546.43861106,0.00027397,3]
[343935409,1733100646868,-500.0,0.00027397,3]
[343935410,1733100646878,-500.0,0.00027397,3]
[343935411,1733100646889,-500.0,0.00027397,3]
[343935413,1733100646900,-500.0,0.00027397,3]
[343935415,1733100646909,-513.82433324,0.00027397,3]
[343935417,1733100646919,-500.0,0.00027397,3]
[343935418,1733100646928,-502.55662788,0.00027397,3]
[343935419,1733100646938,-552.2019929,0.00027397,3]
[343935420,1733100646948,-500.0,0.00027397,3]
[343935421,1733100646957,-500.0,0.00027397,3]
[343935422,1733100646968,-500.0,0.00027397,3]
[343935423,1733100646977,-500.0,0.00027397,3]
[343935424,1733100646987,-500.0,0.00027397,3]
[343935425,1733100646996,-488.49314462,0.00027397,3]
[343935426,1733100647006,-500.0,0.00027397,3]
[343935427,1733100647015,-500.0,0.00027397,3]
[343935428,1733100647024,-500.0,0.00027397,3]
[343935429,1733100647033,-517.83326488,0.00027397,3]
[343935430,1733100647043,-504.40157301,0.00027397,3]
[343935431,1733100647052,-500.0,0.00027397,3]
[343935432,1733100647062,-505.6456852,0.00027397,3]
[343935433,1733100647071,-500.0,0.00027397,3]
[343935434,1733100647081,-500.0,0.00027397,3]
[343935435,1733100647092,-500.0,0.00027397,3]
[343935436,1733100647101,-505.36449493,0.00027397,3]
[343935437,1733100647111,-504.92397145,0.00027397,3]
[343935438,1733100647120,-500.0,0.00027397,3]
[343935439,1733100647129,-500.0,0.00027397,3]
[343935440,1733100647139,-502.42774132,0.00027397,3]
[343935441,1733100647149,-500.0,0.00027397,3]
[343935442,1733100647158,-500.0,0.00027397,3]
[343935443,1733100647168,-500.0,0.00027397,3]
[343935444,1733100647177,-530.41463184,0.00027397,3]
[343935445,1733100647187,-566.3131513,0.00027397,3]
[343935446,1733100647196,-504.96731543,0.00027397,3]
[343935447,1733100647206,-359.63475406,0.00027397,3]
[343935448,1733100647215,-500.0,0.00027397,3]
[343935449,1733100647225,-500.0,0.00027397,3]
[343935450,1733100647234,-500.0,0.00027397,3]
[343935451,1733100647244,-500.0,0.00027397,3]
[343935452,1733100647253,-500.0,0.00027397,3]
[343935453,1733100647263,-500.0,0.00027397,3]
[343935454,1733100647273,-500.0,0.00027397,3]